[Event "Vladimir Bato Kontic Memorial 2021"]
[Site "Niksic"]
[Date "2021.04.16"]
[Round "1.4"]
[White "Suleymanli, Aydin"]
[Black "Tomic, Aleksandar"]
[Result "1-0"]
[ECO "E20"]
[WhiteElo "2520"]
[BlackElo "2377"]
[Annotator "broadcasts RC"]
[PlyCount "41"]
[EventDate "2021.04.17"]
[EventType "swiss"]
[EventCountry "MNE"]
[TimeControl "40/5400+30:1800+30"]

1. d4 {[%emt 0:00:00]} Nf6 {[%emt 0:04:04]} 2. c4 {[%emt 0:00:00]} e6 {[%emt 0:04:44]} 3. Nc3 {[%emt 0:00:00]} Bb4 {[%emt 0:00:33]} 4. f3 {[%emt 0:00:36]} c5 {[%emt 0:00:50]} 5. d5 {[%emt 0:00:06]} O-O {[%emt 0:00:47]} 6. e4 {[%emt 0:00:32]} b5 {[%emt 0:02:53]} 7. Nh3 {[%emt 0:01:11]} bxc4 {[%emt 0:08:31]} 8. Bxc4 {[%emt 0:00:16]} exd5 {[%emt 0:01:16]} 9. Bxd5 {[%emt 0:00:07]} Nxd5 {[%emt 0:00:59]} 10. Qxd5 {[%emt 0:00:08]} Qb6 {[%emt 0:03:03]} 11. O-O {[%emt 0:00:51]} Nc6 {[%emt 0:23:34]} 12. Be3 {[%emt 0:04:04]} d6 {[%emt 0:11:40]} 13. Nf4 {[%emt 0:03:20]} Re8 {[%emt 0:09:12]} 14. Qg5 {[%emt 0:26:04]} Bxc3 {[%emt 0:03:51]} 15. bxc3 {[%emt 0:00:12]} Ne5 {[%emt 0:00:40]} 16. Nd5 {[%emt 0:14:29]} Qd8 {[%emt 0:00:36]} 17. Qg3 {[%emt 0:00:07]} Be6 {[%emt 0:02:54]} 18. Bg5 {[%emt 0:01:39]} Qd7 {[%emt 0:17:22]} 19. Nf6+ {[%emt 0:00:30]} gxf6 {[%emt 0:00:15]} 20. Bxf6+ {[%emt 0:00:05]} Bg4 {[%emt 0:01:44]} 21. Qh4 {[%emt 0:03:18]} 1-0

[Event "Vladimir Bato Kontic Memorial 2021"]
[Site "Niksic"]
[Date "2021.04.17"]
[Round "2.11"]
[White "Tomic, Aleksandar"]
[Black "Miletic, Vuk"]
[Result "1-0"]
[ECO "C02"]
[WhiteElo "2377"]
[BlackElo "2254"]
[Annotator "ChessBase"]
[PlyCount "81"]
[EventDate "2021.04.17"]
[EventType "swiss"]
[EventCountry "MNE"]
[SourceTitle "playchess.com"]
[Source "ChessBase"]
[SourceQuality "1"]
[TimeControl "40/5400+30:1800+30"]

1. d4 e6 2. e4 d5 3. e5 c5 4. c3 Nc6 5. Nf3 Qb6 6. a3 c4 7. Be2 Na5 8. Nbd2 Bd7 9. O-O Ne7 10. Kh1 Nc8 11. Ng5 h6 12. Nh3 Qc7 13. f4 Nb6 14. g4 O-O-O 15. f5 Ba4 16. Qe1 Bc2 17. Qg3 Kb8 18. Nf4 Qd7 19. Ng2 Be7 20. Ne3 Ba4 21. Rb1 Ka8 22. Nf3 Nb3 23. Bd2 Bg5 24. h4 Nxd2 25. Nxd2 Bxe3 26. Qxe3 exf5 27. Qf4 g6 28. Rbc1 Qe7 29. gxf5 gxf5 30. Rg1 Bd7 31. Bd1 Be6 32. Bc2 Nc8 33. Nf3 Qd7 34. a4 h5 35. Rg7 Ne7 36. Rcg1 Ng6 37. R1xg6 fxg6 38. Rxd7 Rxd7 39. Ng5 Re7 40. Bd1 Bd7 41. a5 1-0

[Event "Vladimir Bato Kontic Memorial 2021"]
[Site "Niksic"]
[Date "2021.04.18"]
[Round "4.9"]
[White "Tomic, Aleksandar"]
[Black "Nikac, Predrag"]
[Result "1-0"]
[ECO "B53"]
[WhiteElo "2377"]
[BlackElo "2318"]
[Annotator "RC"]
[PlyCount "79"]
[EventDate "2021.04.17"]
[EventType "swiss"]
[EventCountry "MNE"]
[SourceTitle "playchess.com"]
[Source "ChessBase"]
[SourceQuality "1"]
[TimeControl "40/5400+30:1800+30"]

1. Nf3 {[%emt 0:14:37]} d6 {[%emt 0:00:57]} 2. e4 {[%emt 0:04:24]} c5 {[%emt 0:00:12]} 3. d4 {[%emt 0:01:39]} cxd4 {[%emt 0:00:16]} 4. Qxd4 {[%emt 0:01:47]} Nc6 {[%emt 0:00:23]} 5. Qe3 {[%emt 0:00:18]} Nf6 {[%emt 0:00:52]} 6. c4 {[%emt 0:00:41]} g6 {[%emt 0:02:28]} 7. h3 {[%emt 0:02:14]} Bg7 {[%emt 0:06:06]} 8. Be2 {[%emt 0:00:26]} O-O {[%emt 0:01:36]} 9. O-O {[%emt 0:00:10]} a5 {[%emt 0:03:41]} 10. Bd2 {[%emt 0:04:05]} Nb4 {[%emt 0:01:27]} 11. Rc1 {[%emt 0:05:18]} b6 {[%emt 0:02:17]} 12. Nc3 {[%emt 0:05:56]} Bb7 {[%emt 0:03:58]} 13. Rab1 {[%emt 0:03:51]} Na6 {[%emt 0:03:17]} 14. Bd1 {[%emt 0:11:31]} Rc8 {[%emt 0:03:38]} 15. b3 {[%emt 0:01:04]} Nc5 {[%emt 0:04:03]} 16. Bc2 {[%emt 0:00:50]} e6 {[%emt 0:00:21]} 17. Rd1 {[%emt 0:04:25]} d5 {[%emt 0:03:52]} 18. Be1 {[%emt 0:02:42]} Re8 {[%emt 0:04:15]} 19. Rbc1 {[%emt 0:02:12]} Qc7 {[%emt 0:05:16]} 20. e5 {[%emt 0:07:45]} Nfe4 {[%emt 0:04:58]} 21. Nb5 {[%emt 0:01:53]} Qb8 {[%emt 0:00:09]} 22. Bb1 {[%emt 0:05:05]} f5 {[%emt 0:13:19]} 23. exf6 {[%emt 0:01:39]} Nxf6 {[%emt 0:01:20]} 24. Bc3 {[%emt 0:01:25]} Nh5 {[%emt 0:01:43]} 25. Be5 {[%emt 0:04:12]} Bxe5 {[%emt 0:03:33]} 26. Nxe5 {[%emt 0:00:19]} Rcd8 {[%emt 0:01:04]} 27. Re1 {[%emt 0:04:50]} Rf8 {[%emt 0:05:48]} 28. Qh6 {[%emt 0:02:42]} Ne4 {[%emt 0:01:40]} 29. Ng4 {[%emt 0:02:13]} Rd7 {[%emt 0:13:38]} 30. Bxe4 {[%emt 0:00:37]} dxe4 {[%emt 0:00:06]} 31. Rcd1 {[%emt 0:00:25]} Qd8 {[%emt 0:03:01]} 32. Rxd7 {[%emt 0:01:45]} Qxd7 {[%emt 0:00:02]} 33. Qe3 {[%emt 0:00:37]} Qd8 {[%emt 0:02:12]} 34. Nc3 {[%emt 0:00:35]} Nf4 {[%emt 0:01:27]} 35. Rd1 {[%emt 0:00:35]} Qg5 {[%emt 0:01:11]} 36. Rd7 {[%emt 0:00:55]} Bc6 {[%emt 0:01:58]} 37. Rc7 {[%emt 0:00:15]} Ba8 {[%emt 0:01:07]} 38. Qd4 {[%emt 0:00:40]} e5 {[%emt 0:00:52]} 39. Qd7 {[%emt 0:00:21]} Qh4 {[%emt 0:00:28]} 40. Qg7# {[%emt 0:00:00]} 1-0

[Event "Vladimir Bato Kontic Memorial 2021"]
[Site "Niksic"]
[Date "2021.04.19"]
[Round "5.1"]
[White "Suleymanli, Aydin"]
[Black "Dardha, Daniel"]
[Result "1-0"]
[ECO "E20"]
[WhiteElo "2520"]
[BlackElo "2516"]
[Annotator "ChessBase"]
[PlyCount "95"]
[EventDate "2021.04.17"]
[EventType "swiss"]
[EventCountry "MNE"]
[SourceTitle "playchess.com"]
[Source "ChessBase"]
[SourceQuality "1"]
[TimeControl "40/5400+30:1800+30"]

1. d4 {[%emt 0:00:00]} Nf6 {[%emt 0:04:37]} 2. c4 {[%emt 0:00:00]} e6 {[%emt 0:00:07]} 3. Nc3 {[%emt 0:00:00]} Bb4 {[%emt 0:00:09]} 4. f3 {[%emt 0:00:00]} c5 {[%emt 0:00:30]} 5. d5 {[%emt 0:00:01]} O-O {[%emt 0:00:11]} 6. e4 {[%emt 0:00:08]} b5 {[%emt 0:00:10]} 7. Nh3 {[%emt 0:00:04]} bxc4 {[%emt 0:00:06]} 8. Bxc4 {[%emt 0:00:05]} Ba6 {[%emt 0:00:20]} 9. Bxa6 {[%emt 0:01:31]} Nxa6 {[%emt 0:00:07]} 10. O-O {[%emt 0:09:16]} c4 {[%emt 0:00:22]} 11. Kh1 {[%emt 0:11:12]} h6 {[%emt 0:04:47]} 12. Be3 {[%emt 0:10:13]} Re8 {[%emt 0:09:35]} 13. Bd4 {[%emt 0:05:07]} e5 {[%emt 0:10:06]} 14. Be3 {[%emt 0:00:26]} Nc5 {[%emt 0:04:33]} 15. Ne2 {[%emt 0:05:50]} Rc8 {[%emt 0:15:51]} 16. Nf2 {[%emt 0:07:44]} Qb6 {[%emt 0:04:51]} 17. Ng3 {[%emt 0:00:53]} Qa6 {[%emt 0:07:16]} 18. Qe2 {[%emt 0:10:32]} Nd3 {[%emt 0:05:30]} 19. Rfd1 {[%emt 0:01:12]} Nf4 {[%emt 0:03:35]} 20. Bxf4 {[%emt 0:06:03]} exf4 {[%emt 0:00:18]} 21. Nf5 {[%emt 0:00:01]} Bf8 {[%emt 0:06:30]} 22. Qd2 {[%emt 0:02:50]} g6 {[%emt 0:00:30]} 23. Nd4 {[%emt 0:00:02]} Qd6 {[%emt 0:01:40]} 24. Ne2 {[%emt 0:01:19]} Qe5 {[%emt 0:04:00]} 25. Nxf4 {[%emt 0:03:30]} Rb8 {[%emt 0:02:21]} 26. Rab1 {[%emt 0:02:04]} Bb4 {[%emt 0:01:49]} 27. Qc1 {[%emt 0:00:26]} Qc7 {[%emt 0:06:30]} 28. Ne2 {[%emt 0:02:33]} Bf8 {[%emt 0:00:21]} 29. Rd2 {[%emt 0:02:07]} Qa5 {[%emt 0:01:09]} 30. Nc3 {[%emt 0:04:09]} Bc5 {[%emt 0:01:26]} 31. Qf1 {[%emt 0:01:28]} Be3 {[%emt 0:01:52]} 32. Rc2 {[%emt 0:00:35]} Rec8 {[%emt 0:00:48]} 33. Re1 {[%emt 0:01:56]} Bd4 {[%emt 0:00:34]} 34. Nfd1 {[%emt 0:00:14]} d6 {[%emt 0:01:03]} 35. Rd2 {[%emt 0:00:27]} Bb6 {[%emt 0:01:03]} 36. f4 {[%emt 0:00:34]} Rd8 {[%emt 0:01:07]} 37. Qxc4 {[%emt 0:01:14]} Re8 {[%emt 0:00:26]} 38. e5 {[%emt 0:02:02]} Rbc8 {[%emt 0:01:23]} 39. Qd3 {[%emt 0:00:50]} Nh5 {[%emt 0:01:05]} 40. g3 {[%emt 0:00:00]} dxe5 {[%emt 0:00:00]} 41. fxe5 {[%emt 0:18:59]} Qb4 {[%emt 0:20:31]} 42. Qf3 {[%emt 0:00:50]} Rcd8 {[%emt 0:05:02]} 43. Nf2 {[%emt 0:00:33]} Bd4 {[%emt 0:01:36]} 44. Re4 {[%emt 0:01:41]} Rxd5 {[%emt 0:01:11]} 45. Qd3 {[%emt 0:06:23]} Bxc3 {[%emt 0:03:36]} 46. Qxd5 {[%emt 0:00:07]} Bxd2 {[%emt 0:00:19]} 47. Rxb4 {[%emt 0:00:04]} Bxb4 {[%emt 0:00:07]} 48. Qb5 {[%emt 0:00:02]} 1-0

[Event "Vladimir Bato Kontic Memorial 2021"]
[Site "Niksic"]
[Date "2021.04.19"]
[Round "5.2"]
[White "Niemann, Hans Moke"]
[Black "Sanal, Vahap"]
[Result "1-0"]
[ECO "E11"]
[WhiteElo "2508"]
[BlackElo "2572"]
[Annotator "ChessBase"]
[PlyCount "79"]
[EventDate "2021.04.17"]
[EventType "swiss"]
[EventCountry "MNE"]
[SourceTitle "playchess.com"]
[Source "ChessBase"]
[SourceQuality "1"]
[TimeControl "40/5400+30:1800+30"]

1. d4 {[%emt 0:17:17]} e6 {[%emt 0:00:00]} 2. c4 {[%emt 0:00:54]} Bb4+ {[%emt 0:00:00]} 3. Bd2 {[%emt 0:00:23]} Bxd2+ {[%emt 0:00:00]} 4. Qxd2 {[%emt 0:00:39]} d5 {[%emt 0:00:18]} 5. Nc3 {[%emt 0:03:07]} Nf6 {[%emt 0:00:08]} 6. Nf3 {[%emt 0:00:48]} O-O {[%emt 0:00:11]} 7. e3 {[%emt 0:00:10]} Qe7 {[%emt 0:00:21]} 8. Rc1 {[%emt 0:01:23]} b6 {[%emt 0:01:37]} 9. cxd5 {[%emt 0:00:20]} exd5 {[%emt 0:00:24]} 10. Bd3 {[%emt 0:00:52]} Bb7 {[%emt 0:00:51]} 11. O-O {[%emt 0:00:16]} Nbd7 {[%emt 0:01:14]} 12. Ne2 {[%emt 0:02:07]} Ne4 {[%emt 0:04:36]} 13. Qc2 {[%emt 0:00:14]} Rac8 {[%emt 0:01:09]} 14. b3 {[%emt 0:01:20]} Rfe8 {[%emt 0:09:10]} 15. Qb2 {[%emt 0:04:35]} a5 {[%emt 0:04:56]} 16. Rfd1 {[%emt 0:03:43]} h5 {[%emt 0:07:04]} 17. Nf4 {[%emt 0:02:00]} h4 {[%emt 0:01:00]} 18. Bf1 {[%emt 0:01:26]} Ndf6 {[%emt 0:13:51]} 19. Nd3 {[%emt 0:02:48]} Ng4 {[%emt 0:01:53]} 20. h3 {[%emt 0:01:04]} Nh6 {[%emt 0:00:08]} 21. b4 {[%emt 0:01:44]} Ra8 {[%emt 0:07:38]} 22. Rc2 {[%emt 0:01:48]} Nf5 {[%emt 0:09:20]} 23. Rdc1 {[%emt 0:00:24]} Rec8 {[%emt 0:00:36]} 24. b5 {[%emt 0:01:32]} f6 {[%emt 0:01:06]} 25. Qb3 {[%emt 0:05:30]} g5 {[%emt 0:00:34]} 26. Nd2 {[%emt 0:00:38]} Nxd2 {[%emt 0:02:13]} 27. Rxd2 {[%emt 0:00:08]} a4 {[%emt 0:05:52]} 28. Qb4 {[%emt 0:00:45]} Nd6 {[%emt 0:00:08]} 29. Rdc2 {[%emt 0:00:29]} Ra7 {[%emt 0:02:55]} 30. Be2 {[%emt 0:03:28]} Ba8 {[%emt 0:01:08]} 31. Nb2 {[%emt 0:00:28]} a3 {[%emt 0:01:55]} 32. Na4 {[%emt 0:00:47]} Qd7 {[%emt 0:00:59]} 33. Qxa3 {[%emt 0:01:18]} Ra5 {[%emt 0:10:16]} 34. Nxb6 {[%emt 0:17:51]} cxb6 {[%emt 0:02:08]} 35. Qxd6 {[%emt 0:00:07]} Qxd6 {[%emt 0:00:08]} 36. Rxc8+ {[%emt 0:00:05]} Kg7 {[%emt 0:00:10]} 37. R1c7+ {[%emt 0:00:05]} Kg6 {[%emt 0:00:40]} 38. Rg8+ {[%emt 0:01:05]} Kh6 {[%emt 0:00:10]} 39. Bd3 {[%emt 0:00:17]} f5 {[%emt 0:01:24]} 40. Rgg7 {[%emt 0:00:00]} 1-0

[Event "Vladimir Bato Kontic Memorial 2021"]
[Site "Niksic"]
[Date "2021.04.19"]
[Round "5.4"]
[White "Draskovic, Luka"]
[Black "Djukic, Nikola"]
[Result "1-0"]
[ECO "A36"]
[WhiteElo "2472"]
[BlackElo "2515"]
[Annotator "ChessBase"]
[PlyCount "67"]
[EventDate "2021.04.17"]
[EventType "swiss"]
[EventCountry "MNE"]
[SourceTitle "playchess.com"]
[Source "ChessBase"]
[SourceQuality "1"]
[TimeControl "40/5400+30:1800+30"]

1. c4 {[%emt 1:30:30]} g6 {[%emt 0:05:17]} 2. Nc3 {[%emt 0:00:00]} Bg7 {[%emt 0:00:05]} 3. g3 {[%emt 0:00:00]} c5 {[%emt 0:00:53]} 4. Bg2 {[%emt 0:00:00]} Nc6 {[%emt 0:00:07]} 5. e3 {[%emt 0:00:00]} e5 {[%emt 0:01:14]} 6. Nge2 {[%emt 0:00:00]} Nge7 {[%emt 0:00:05]} 7. b3 {[%emt 0:00:00]} O-O {[%emt 0:00:29]} 8. O-O {[%emt 0:00:00]} d6 {[%emt 0:02:04]} 9. Bb2 {[%emt 0:00:00]} Be6 {[%emt 0:05:52]} 10. Nd5 {[%emt 0:00:00]} Qd7 {[%emt 0:00:27]} 11. Nec3 {[%emt 0:00:00]} f5 {[%emt 0:25:07]} 12. f4 {[%emt 0:00:00]} Rae8 {[%emt 0:15:49]} 13. d3 {[%emt 0:00:00]} Kh8 {[%emt 0:00:11]} 14. Qd2 {[%emt 0:00:00]} Ng8 {[%emt 0:03:21]} 15. a3 {[%emt 0:00:00]} Nf6 {[%emt 0:05:21]} 16. b4 {[%emt 0:00:00]} b6 {[%emt 0:01:22]} 17. b5 {[%emt 0:00:00]} Ne7 {[%emt 0:00:44]} 18. Nxf6 {[%emt 0:00:00]} Bxf6 {[%emt 0:00:09]} 19. Rae1 {[%emt 0:00:00]} Bg7 {[%emt 0:02:52]} 20. e4 {[%emt 0:00:00]} exf4 {[%emt 0:05:19]} 21. Rxf4 {[%emt 0:00:00]} Ng8 {[%emt 0:07:41]} 22. exf5 {[%emt 0:00:00]} Bxf5 {[%emt 0:00:18]} 23. Ref1 {[%emt 0:00:00]} Qe6 {[%emt 0:08:13]} 24. Nd5 {[%emt 0:00:00]} Bxb2 {[%emt 0:00:48]} 25. Qxb2+ {[%emt 0:00:00]} Qe5 {[%emt 0:00:03]} 26. d4 {[%emt 0:00:23]} cxd4 {[%emt 0:02:59]} 27. g4 {[%emt 0:00:05]} d3 {[%emt 0:00:24]} 28. Qd2 {[%emt 0:03:58]} Qe2 {[%emt 0:02:38]} 29. Qc3+ {[%emt 0:00:11]} Re5 {[%emt 0:00:05]} 30. gxf5 {[%emt 0:01:14]} d2 {[%emt 0:00:05]} 31. Bf3 {[%emt 0:01:05]} Qe1 {[%emt 0:00:19]} 32. Re4 {[%emt 0:00:57]} Qxf1+ {[%emt 0:02:39]} 33. Kxf1 {[%emt 0:00:05]} Rfxf5 {[%emt 0:00:05]} 34. Ke2 {[%emt 0:00:16]} 1-0

[Event "Vladimir Bato Kontic Memorial 2021"]
[Site "Niksic"]
[Date "2021.04.19"]
[Round "5.5"]
[White "Nikcevic, Nebojsa"]
[Black "Kisic, Bozidar"]
[Result "1/2-1/2"]
[ECO "E90"]
[WhiteElo "2393"]
[BlackElo "2263"]
[Annotator "RC"]
[PlyCount "83"]
[EventDate "2021.04.17"]
[EventType "swiss"]
[EventCountry "MNE"]
[SourceTitle "playchess.com"]
[Source "ChessBase"]
[SourceQuality "1"]
[TimeControl "40/5400+30:1800+30"]

1. Nf3 {[%emt 0:00:00]} c5 {[%emt 0:00:00]} 2. c4 {[%emt 0:00:00]} g6 {[%emt 0:00:06]} 3. d4 {[%emt 0:00:10]} Bg7 {[%emt 0:00:17]} 4. d5 {[%emt 0:02:54]} b5 {[%emt 0:00:53]} 5. e4 {[%emt 0:02:10]} d6 {[%emt 0:00:41]} 6. cxb5 {[%emt 0:01:42]} a6 {[%emt 0:00:08]} 7. Nc3 {[%emt 0:01:59]} Nf6 {[%emt 0:00:11]} 8. h3 {[%emt 0:06:16]} O-O {[%emt 0:01:05]} 9. a4 {[%emt 0:00:37]} Nbd7 {[%emt 0:06:59]} 10. Bd2 {[%emt 0:04:21]} Re8 {[%emt 0:07:19]} 11. Bd3 {[%emt 0:08:48]} axb5 {[%emt 0:05:50]} 12. Bxb5 {[%emt 0:05:17]} Ba6 {[%emt 0:04:09]} 13. O-O {[%emt 0:00:38]} Bxb5 {[%emt 0:05:51]} 14. axb5 {[%emt 0:00:09]} Qb6 {[%emt 0:04:08]} 15. Qe2 {[%emt 0:07:56]} Qb7 {[%emt 0:02:58]} 16. Bf4 {[%emt 0:17:44]} Rxa1 {[%emt 0:21:09]} 17. Rxa1 {[%emt 0:01:08]} Nb6 {[%emt 0:00:37]} 18. Nd2 {[%emt 0:12:33]} Nfd7 {[%emt 0:16:28]} 19. Qd3 {[%emt 0:11:09]} Ra8 {[%emt 0:02:46]} 20. Qf1 {[%emt 0:00:41]} h6 {[%emt 0:04:48]} 21. Ra6 {[%emt 0:01:35]} Nb8 {[%emt 0:01:00]} 22. Ra1 {[%emt 0:03:44]} N8d7 {[%emt 0:00:29]} 23. Nb3 {[%emt 0:02:44]} Rxa1 {[%emt 0:07:57]} 24. Qxa1 {[%emt 0:00:07]} Nc4 {[%emt 0:00:44]} 25. Qa6 {[%emt 0:01:09]} Qb8 {[%emt 0:00:54]} 26. Na4 {[%emt 0:02:28]} Ndb6 {[%emt 0:02:26]} 27. Nbxc5 {[%emt 0:02:08]} g5 {[%emt 0:00:41]} 28. Nxb6 {[%emt 0:01:17]} Qxb6 {[%emt 0:01:09]} 29. Na4 {[%emt 0:02:10]} Qd4 {[%emt 0:00:45]} 30. b6 {[%emt 0:00:50]} Nxb6 {[%emt 0:00:59]} 31. Nxb6 {[%emt 0:00:23]} gxf4 {[%emt 0:00:28]} 32. Qc8+ {[%emt 0:00:17]} Kh7 {[%emt 0:00:33]} 33. Qf5+ {[%emt 0:00:10]} Kg8 {[%emt 0:01:00]} 34. Qc8+ {[%emt 0:00:03]} Kh7 {[%emt 0:00:05]} 35. Qf5+ {[%emt 0:00:04]} Kg8 {[%emt 0:00:20]} 36. Nc8 {[%emt 0:00:59]} Bf6 {[%emt 0:00:54]} 37. b3 {[%emt 0:00:54]} Kf8 {[%emt 0:00:36]} 38. h4 {[%emt 0:01:05]} Qd1+ {[%emt 0:00:35]} 39. Kh2 {[%emt 0:00:06]} Qd4 {[%emt 0:00:10]} 40. Kg1 {[%emt 0:00:00]} Qd1+ {[%emt 0:00:00]} 41. Kh2 {[%emt 0:15:32]} Qd4 {[%emt 0:16:26]} 42. Kg1 {[%emt 0:01:48]} 1/2-1/2

[Event "Vladimir Bato Kontic Memorial 2021"]
[Site "Niksic"]
[Date "2021.04.19"]
[Round "5.6"]
[White "Kalezic, Blazo"]
[Black "Injac, Teodora"]
[Result "1/2-1/2"]
[ECO "B22"]
[WhiteElo "2456"]
[BlackElo "2340"]
[Annotator "ChessBase"]
[PlyCount "37"]
[EventDate "2021.04.17"]
[EventType "swiss"]
[EventCountry "MNE"]
[SourceTitle "playchess.com"]
[Source "ChessBase"]
[SourceQuality "1"]
[TimeControl "40/5400+30:1800+30"]

1. e4 {[%emt 0:00:00]} c5 {[%emt 0:00:12]} 2. c3 {[%emt 0:00:00]} d5 {[%emt 0:01:07]} 3. exd5 {[%emt 0:00:00]} Qxd5 {[%emt 0:00:07]} 4. d4 {[%emt 0:00:16]} Nf6 {[%emt 0:00:46]} 5. Nf3 {[%emt 0:00:17]} e6 {[%emt 0:00:25]} 6. Be3 {[%emt 0:01:41]} Be7 {[%emt 0:06:04]} 7. Na3 {[%emt 0:10:33]} cxd4 {[%emt 0:04:09]} 8. Nb5 {[%emt 0:01:07]} O-O {[%emt 0:01:14]} 9. Qxd4 {[%emt 0:07:46]} Qxd4 {[%emt 0:16:32]} 10. Bxd4 {[%emt 0:02:06]} Nc6 {[%emt 0:01:34]} 11. Bxf6 {[%emt 0:02:49]} Bxf6 {[%emt 0:16:15]} 12. O-O-O {[%emt 0:12:16]} a6 {[%emt 0:07:50]} 13. Nd6 {[%emt 0:06:01]} Rd8 {[%emt 0:00:11]} 14. Be2 {[%emt 0:01:55]} Be7 {[%emt 0:18:08]} 15. Nxc8 {[%emt 0:00:27]} Raxc8 {[%emt 0:00:09]} 16. Rxd8+ {[%emt 0:00:49]} Rxd8 {[%emt 0:00:36]} 17. Kc2 {[%emt 0:03:03]} Bc5 {[%emt 0:02:24]} 18. Rf1 {[%emt 0:00:37]} Kf8 {[%emt 0:01:19]} 19. b4 {[%emt 0:00:23]} 1/2-1/2

[Event "Vladimir Bato Kontic Memorial 2021"]
[Site "Niksic"]
[Date "2021.04.19"]
[Round "5.7"]
[White "Runic, Zoran"]
[Black "Tomic, Aleksandar"]
[Result "1-0"]
[ECO "D13"]
[WhiteElo "2378"]
[BlackElo "2377"]
[Annotator "ChessBase"]
[PlyCount "91"]
[EventDate "2021.04.17"]
[EventType "swiss"]
[EventCountry "MNE"]
[SourceTitle "playchess.com"]
[Source "ChessBase"]
[SourceQuality "1"]
[TimeControl "40/5400+30:1800+30"]

1. Nf3 {[%emt 0:00:00]} d5 {[%emt 0:02:08]} 2. d4 {[%emt 0:00:01]} Nf6 {[%emt 0:00:51]} 3. c4 {[%emt 0:00:46]} e6 {[%emt 1:28:31]} 4. Nc3 {[%emt 0:01:13]} c6 {[%emt 0:00:00]} 5. Bg5 {[%emt 0:02:03]} Nbd7 {[%emt 0:00:00]} 6. cxd5 {[%emt 0:02:44]} cxd5 {[%emt 0:00:00]} 7. e3 {[%emt 0:01:21]} a6 {[%emt 0:00:00]} 8. Bd3 {[%emt 0:00:36]} Be7 {[%emt 0:00:00]} 9. Rc1 {[%emt 0:00:53]} b5 {[%emt 0:00:00]} 10. a4 {[%emt 0:04:17]} b4 {[%emt 0:00:00]} 11. Ne2 {[%emt 0:00:26]} Bb7 {[%emt 0:00:00]} 12. O-O {[%emt 0:07:44]} Bd6 {[%emt 0:00:00]} 13. Bf4 {[%emt 0:03:22]} Bxf4 {[%emt 0:00:00]} 14. exf4 {[%emt 0:00:06]} O-O {[%emt 0:00:00]} 15. Ne5 {[%emt 0:00:58]} Qb6 {[%emt 0:00:00]} 16. Qd2 {[%emt 0:06:49]} g6 {[%emt 0:00:00]} 17. g4 {[%emt 0:02:13]} Rac8 {[%emt 0:00:00]} 18. h3 {[%emt 0:02:37]} Kg7 {[%emt 0:00:00]} 19. Qe3 {[%emt 0:01:11]} Qd6 {[%emt 0:00:00]} 20. f3 {[%emt 0:02:48]} a5 {[%emt 0:00:00]} 21. Bb5 {[%emt 0:00:57]} Nb8 {[%emt 0:00:00]} 22. h4 {[%emt 0:00:53]} Rxc1 {[%emt 0:00:00]} 23. Rxc1 {[%emt 0:00:20]} Rc8 {[%emt 0:00:00]} 24. h5 {[%emt 0:00:15]} Ng8 {[%emt 0:00:00]} 25. g5 {[%emt 0:08:26]} Ne7 {[%emt 0:00:00]} 26. Rxc8 {[%emt 0:01:29]} Bxc8 {[%emt 0:00:00]} 27. Be8 {[%emt 0:03:33]} Nf5 {[%emt 0:02:35]} 28. Nxf7 {[%emt 0:02:26]} Qc7 {[%emt 0:01:58]} 29. Qe5+ {[%emt 0:01:07]} Qxe5 {[%emt 0:00:08]} 30. Nxe5 {[%emt 0:01:10]} gxh5 {[%emt 0:00:29]} 31. Kf2 {[%emt 0:03:35]} h4 {[%emt 0:00:51]} 32. Bb5 {[%emt 0:00:43]} Nd6 {[%emt 0:02:37]} 33. Nc1 {[%emt 0:06:29]} Nxb5 {[%emt 0:01:18]} 34. axb5 {[%emt 0:00:02]} Bd7 {[%emt 0:01:09]} 35. b6 {[%emt 0:01:28]} Bb5 {[%emt 0:00:45]} 36. b3 {[%emt 0:05:09]} Kf8 {[%emt 0:03:54]} 37. Kg2 {[%emt 0:03:21]} Ke7 {[%emt 0:00:24]} 38. Kh3 {[%emt 0:01:09]} Kd6 {[%emt 0:00:22]} 39. Kxh4 {[%emt 0:00:59]} Nc6 {[%emt 0:00:37]} 40. Kh5 {[%emt 0:00:00]} Nxd4 {[%emt 0:00:00]} 41. Kh6 {[%emt 0:17:14]} a4 {[%emt 0:25:41]} 42. Kxh7 {[%emt 0:00:54]} axb3 {[%emt 0:00:45]} 43. Nxb3 {[%emt 0:00:23]} Nf5 {[%emt 0:02:16]} 44. g6 {[%emt 0:00:36]} Ne7 {[%emt 0:02:13]} 45. g7 {[%emt 0:02:17]} Ba4 {[%emt 0:02:06]} 46. Ng6 {[%emt 0:00:22]} 1-0